fUST/lending_fUST_20241027
["ID","MTS","AMOUNT","RATE_DAILY","PERIOD"]
[340867457,1729962640218,-151.0,0.00034945,14]
[340867458,1729962640228,-151.0,0.00034945,14]
[340867459,1729962640237,-151.0,0.00034945,14]
[340867460,1729962640246,-1011.377825,0.00034952,2]
[340867461,1729962640258,-15242.4310611,0.00034955,5]
[340867462,1729962640268,-3524.69985064,0.00034955,5]
[340867463,1729962640278,-288.97883,0.00034955,14]
[340867464,1729962640287,-151.0,0.00034955,14]
[340867465,1729962640297,-3810.60776527,0.0003496,5]
[340867466,1729962640307,-881.17496266,0.0003496,5]
[340867467,1729962640317,-3810.60776527,0.00034962,5]
[340867468,1729962640327,-881.17496266,0.00034962,5]
[340867469,1729962640338,-562.85227069,0.00034964,7]
[340867470,1729962640348,-20942.72574065,0.00034965,30]
[340867471,1729962640363,-731.85572955,0.00034965,30]
[340867472,1729962640377,-670.34,0.00034965,30]
[340867473,1729962640388,-548.6768004,0.00034965,30]
[340867485,1729962642966,-457.18,0.00034038,10]
[340867486,1729962642977,-151.0,0.00034055,14]
[340867487,1729962642987,-151.0,0.00034687,14]
[340867488,1729962642999,-151.0,0.00034697,14]
[340867489,1729962643010,-151.0,0.00034945,14]
[340867490,1729962643021,-1477.58666837,0.00034965,30]
[340867491,1729962643032,-13424.38804984,0.00034965,30]
[340867492,1729962643045,-452.92248103,0.00034965,30]
[340867497,1729962645928,-135628.50453016,0.00034965,30]
[340867498,1729962645940,-262.416592,0.00034965,14]
[340867499,1729962645952,-159.6,0.00034966,30]
[340867500,1729962645962,-158.0,0.00034966,30]
[340867501,1729962645972,-4006.0,0.0003497,30]
[340867502,1729962645982,-1833.88468905,0.0003497,2]
[340867503,1729962645996,-10000.0,0.0003497,30]
[340867504,1729962646009,-10000.0,0.0003497,30]
[340867505,1729962646024,-558.57320097,0.00034971,30]
[340867506,1729962646037,-10000.0,0.00034972,30]
[340867507,1729962646050,-10000.0,0.00034972,30]
[340867508,1729962646061,-10000.0,0.00034972,30]
[340867509,1729962646074,-10000.0,0.00034972,30]
[340867510,1729962646086,-10000.0,0.00034972,30]
[340867511,1729962646099,-304.7,0.00034976,30]
[340867512,1729962646112,-998.08,0.00034976,30]
[340867513,1729962646126,-158.37191642,0.0003498,2]
[340867514,1729962646139,-3016.56177867,0.0003498,30]
[340867515,1729962646152,-17590.0,0.00034983,30]
[340867516,1729962646165,-11431.8232958,0.0003499,5]
[340867517,1729962646179,-2643.52488798,0.0003499,5]
[340867518,1729962646191,-1000.0,0.00034995,5]
[340867519,1729962646203,-500.0,0.00034999,2]
[340867520,1729962646215,-500.0,0.00034999,2]
[340867521,1729962646227,-500.0,0.00034999,2]
[340867522,1729962646239,-500.0,0.00034999,2]
[340867523,1729962646251,-500.0,0.00034999,2]
[340867524,1729962646267,-500.0,0.00034999,2]
[340867525,1729962646278,-500.0,0.00034999,2]
[340867526,1729962646288,-500.0,0.00034999,2]
[340867527,1729962646300,-500.0,0.00034999,2]
[340867528,1729962646311,-500.0,0.00034999,2]
[340867529,1729962646323,-500.0,0.00034999,2]
[340867530,1729962646338,-151.0,0.00034999,2]
[340867531,1729962646350,-16586.65946,0.00035,16]
[340867532,1729962646361,-26579.78233,0.00035,9]
[340867533,1729962646373,-10863.81185384,0.00035,28]
[340867535,1729962987027,520.0,0.00023,120]
[340867542,1729963155381,178.918537,0.00013973,2]
[340867600,1729963669891,167.861102,0.00013973,2]
[340867708,1729963838226,-300.0,0.00029899,2]
[340867709,1729963838238,-9035.73597619,0.000299,2]
[340867710,1729963838249,-12509.4913373,0.00032024,2]
[340867711,1729963838259,-976.89973,0.00032168,2]
[340867712,1729963838268,-177.093393,0.00032377,2]
[340867713,1729963838278,-500.0,0.00032676,2]
[340867714,1729963838288,-351.91215,0.00032877,120]
[340867715,1729963838298,-151.62910681,0.00033248,3]
[340867716,1729963838309,-269.0,0.00033956,2]
[340867717,1729963838320,-1212.48495761,0.00033956,3]
[340867718,1729963838331,-177.093393,0.00034064,2]
[340867719,1729963838342,-159.049,0.0003483,2]
[340867720,1729963838352,-159.017,0.0003485,120]
[340867721,1729963838361,-183.50754533,0.00034888,2]
[340867722,1729963838370,-5306.16104213,0.0003489,2]
[340867723,1729963838380,-614.49750521,0.0003489,7]
[340867724,1729963838389,-21085.6678025,0.0003498,5]
[340867725,1729963838398,-2000.0,0.00034988,2]
[340867726,1729963838409,-1776.94,0.00034989,120]
[340867727,1729963838419,-380.98,0.00034989,10]
[340867728,1729963838429,-317.48,0.00034989,10]
[340867729,1729963838439,-42171.335605,0.0003499,5]
[340867730,1729963838450,-267.92078251,0.00034999,7]
[340867731,1729963838462,-290.49638347,0.00034999,7]
[340867732,1729963838471,-500.0,0.00034999,7]
[340867733,1729963838482,-212.92632655,0.00034999,7]
[340867734,1729963838493,-500.0,0.00034999,7]
[340867735,1729963838504,-500.0,0.00034999,7]
[340867736,1729963838516,-500.0,0.00034999,7]
[340867737,1729963838526,-500.0,0.00034999,7]
[340867738,1729963838535,-500.0,0.00034999,7]
[340867739,1729963838544,-500.0,0.00034999,7]
[340867740,1729963838553,-500.0,0.00034999,7]
[340867741,1729963838563,-500.0,0.00034999,7]
[340867742,1729963838572,-500.0,0.00034999,7]
[340867743,1729963838583,-500.0,0.00034999,7]
[340867744,1729963838594,-341.07327495,0.00034999,7]
[340867745,1729963838605,-500.0,0.00034999,7]
[340867746,1729963838616,-500.0,0.00034999,7]
[340867747,1729963838626,-500.0,0.00034999,7]
[340867748,1729963838638,-500.0,0.00034999,7]
[340867749,1729963838648,-500.0,0.00034999,7]
[340867750,1729963838658,-500.0,0.00034999,7]
[340867751,1729963838669,-500.0,0.00034999,7]
[340867752,1729963838679,-500.0,0.00034999,7]
[340867753,1729963838691,-500.0,0.00034999,7]
[340867754,1729963838701,-500.0,0.00034999,7]
[340867755,1729963838713,-500.0,0.00034999,7]
[340867756,1729963838725,-500.0,0.00034999,7]
[340867757,1729963838735,-500.0,0.00034999,7]
[340867758,1729963838745,-500.0,0.00034999,7]
[340867759,1729963838755,-500.0,0.00034999,7]
[340867760,1729963838765,-500.0,0.00034999,7]
[340867761,1729963838776,-238.45167248,0.00034999,7]
[340867762,1729963838785,-500.0,0.00034999,7]
[340867763,1729963838796,-500.0,0.00034999,7]
[340867764,1729963838806,-500.0,0.00034999,7]
[340867765,1729963838816,-500.0,0.00034999,7]
[340867766,1729963838826,-500.0,0.00034999,7]
[340867767,1729963838836,-500.0,0.00034999,7]
[340867768,1729963838845,-500.0,0.00034999,7]
[340867769,1729963838855,-500.0,0.00034999,7]
[340867770,1729963838866,-500.0,0.00034999,7]
[340867771,1729963838880,-500.0,0.00034999,7]
[340867772,1729963838890,-500.0,0.00034999,7]
[340867773,1729963838900,-500.0,0.00034999,7]
[340867774,1729963838911,-500.0,0.00034999,7]
[340867775,1729963838922,-500.0,0.00034999,7]
[340867776,1729963838932,-500.0,0.00034999,7]
[340867777,1729963838942,-500.0,0.00034999,7]
[340867778,1729963838954,-500.0,0.00034999,7]
[340867779,1729963838964,-500.0,0.00034999,7]
[340867780,1729963838973,-500.0,0.00034999,7]
[340867781,1729963838983,-500.0,0.00034999,7]
[340867782,1729963838994,-500.0,0.00034999,7]
[340867783,1729963839004,-500.0,0.00034999,7]
[340867784,1729963839015,-500.0,0.00034999,7]
[340867785,1729963839026,-500.0,0.00034999,7]
[340867786,1729963839036,-300.0,0.00034999,7]
[340867787,1729963839047,-26736.18814616,0.00035,28]
[340867788,1729963839058,-10459.81707501,0.00035,2]
[340867789,1729963839067,-7763.70618449,0.00035,2]
[340867790,1729963839078,-200.0,0.00035,60]
[340867791,1729963839088,-300.0,0.00035,120]
[340867792,1729963839098,-290.0,0.00035,2]
[340867793,1729963839106,-742.89,0.00035,30]
[340867794,1729963839116,-808.27,0.00035,30]
[340867795,1729963839125,-343.29,0.00035,30]
[340867796,1729963839134,-664.11,0.00035,30]
[340867797,1729963839143,-1500.0,0.00035,30]
[340867798,1729963839152,-1500.0,0.00035,2]
[340867799,1729963839161,-1500.0,0.00035,2]
[340867800,1729963839171,-1500.0,0.00035,2]
[340867801,1729963839183,-1578.26,0.00035,2]
[340867802,1729963839193,-1500.0,0.00035,2]
[340867803,1729963839202,-1070.0,0.00035,30]
[340867804,1729963839211,-1550.0,0.00035,60]
[340867805,1729963839221,-28405.68935,0.00035,30]
[340867806,1729963839231,-2000.0,0.00035,30]
[340867807,1729963839240,-500.0,0.00035026,62]
[340867808,1729963839250,-307.49436589,0.00035026,62]
[340867809,1729963839259,-299.0,0.00035029,2]
[340867810,1729963839269,-500.0,0.00035032,120]
[340867811,1729963839279,-719.0,0.00035033,30]
[340867812,1729963839289,-489.83929516,0.00035033,30]
[340867813,1729963839300,-301.0,0.00035054,120]
[340867814,1729963839311,-500.0,0.00035059,120]
[340867815,1729963839323,-500.0,0.00035059,120]
[340867816,1729963839332,-301.0,0.00035064,120]
[340867817,1729963839342,-42171.335605,0.00035068,5]
[340867818,1729963839352,-500.41912249,0.00035073,5]
[340867819,1729963839361,-301.0,0.00035074,120]
[340867820,1729963839370,-151.0,0.00035078,14]
[340867821,1729963839379,-151.0,0.00035078,14]
[340867822,1729963839388,-151.0,0.00035078,14]
[340867823,1729963839397,-153.436744,0.00035078,14]
[340867824,1729963839407,-151.0,0.00035078,14]
[340867825,1729963839417,-151.0,0.00035078,14]
[340867826,1729963839426,-151.0,0.00035078,14]
[340867827,1729963839435,-151.0,0.00035078,14]
[340867828,1729963839444,-151.0,0.00035078,14]
[340867829,1729963839453,-151.0,0.00035078,14]
[340867830,1729963839463,-151.0,0.00035078,14]
[340867831,1729963839473,-151.0,0.00035078,14]
[340867832,1729963839482,-151.0,0.00035078,14]
[340867833,1729963839491,-151.0,0.00035078,14]
[340867834,1729963839500,-151.0,0.00035078,14]
[340867835,1729963839510,-151.0,0.00035078,14]
[340867836,1729963839519,-151.0,0.00035078,14]
[340867837,1729963839529,-500.0,0.00035084,120]
[340867838,1729963839540,-151.0,0.00035084,120]
[340867839,1729963839550,-150.112233,0.000351,6]
[340867840,1729963839560,-200.92024374,0.00035125,5]
[340867841,1729963839570,-12632.10077435,0.00035172,5]
[340867842,1729963839591,-8453.56702815,0.00035172,5]
[340867843,1729963839600,-500.0,0.00035173,5]
[340867844,1729963839611,-603.68313273,0.00035173,5]
[340867845,1729963839621,-500.0,0.00035173,5]
[340867846,1729963839631,-190.60507425,0.00035173,5]
[340867847,1729963839642,-393.99658948,0.00035181,7]
[340867848,1729963839653,-194.07674132,0.00035181,7]
[340867849,1729963839664,-303.3991543,0.00035181,7]
[340867850,1729963839673,-180.95596312,0.00035181,7]
[340867852,1729963839683,-151.0,0.00035182,14]
[340867855,1729963839693,-151.0,0.00035182,14]
[340867857,1729963839702,-152.872584,0.00035182,14]
[340867858,1729963839712,-151.0,0.00035182,14]
[340867860,1729963839721,-151.0,0.00035182,14]
[340867861,1729963839732,-151.0,0.00035182,14]
[340867862,1729963839742,-151.871334,0.00035182,14]
[340867863,1729963839751,-151.0,0.00035182,14]
[340867864,1729963839761,-151.0,0.00035182,14]
[340867865,1729963839771,-151.0,0.00035182,14]
[340867866,1729963839782,-151.0,0.00035182,14]
[340867868,1729963839791,-151.0,0.00035182,14]
[340867869,1729963839801,-151.0,0.00035182,14]
[340867871,1729963839810,-151.0,0.00035182,14]
[340867873,1729963839819,-152.073378,0.00035182,14]
[340867874,1729963839829,-151.0,0.00035182,14]
[340867875,1729963839838,-151.0,0.00035182,14]
[340867876,1729963839848,-151.0,0.00035182,14]
[340867877,1729963839857,-219.973311,0.00035182,14]
[340867878,1729963839867,-151.0,0.00035182,14]
[340867879,1729963839876,-151.0,0.00035182,14]
[340867880,1729963839885,-151.0,0.00035182,14]
[340867881,1729963839894,-151.0,0.00035182,14]
[340867883,1729963839904,-151.0,0.00035182,14]
[340867885,1729963839913,-151.0,0.00035182,14]
[340867887,1729963839923,-243.88232,0.00035182,14]
[340867889,1729963839932,-151.0,0.00035182,14]
[340867891,1729963839942,-151.0,0.00035182,14]
[340867892,1729963839952,-151.0,0.00035182,14]
[340867894,1729963839961,-151.0,0.00035182,14]
[340867896,1729963839972,-151.0,0.00035182,14]
[340867898,1729963839981,-151.0,0.00035182,14]
[340867900,1729963839991,-151.0,0.00035182,14]
[340867902,1729963840000,-151.0,0.00035182,14]
[340867904,1729963840010,-151.0,0.00035182,14]
[340867906,1729963840020,-151.0,0.00035182,14]
[340867908,1729963840030,-151.0,0.00035182,14]
[340867910,1729963840040,-151.0,0.00035182,14]
[340867911,1729963840049,-197.74872,0.00035182,14]
[340867913,1729963840058,-151.0,0.00035182,14]
[340867915,1729963840071,-151.0,0.00035182,14]
[340867917,1729963840080,-151.0,0.00035182,14]
[340867919,1729963840090,-151.0,0.00035182,14]
[340867921,1729963840100,-151.0,0.00035182,14]
[340867923,1729963840109,-246.812669,0.00035182,14]
[340867925,1729963840120,-151.0,0.00035182,14]
[340867927,1729963840132,-151.0,0.00035182,14]
[340867928,1729963840142,-151.0,0.00035182,14]
[340867930,1729963840154,-151.0,0.00035182,14]
[340867932,1729963840165,-151.0,0.00035182,14]
[340867934,1729963840176,-151.0,0.00035182,14]
[340867935,1729963840187,-151.0,0.00035182,14]
[340867936,1729963840198,-151.0,0.00035182,14]
[340867937,1729963840209,-1000.0,0.00035183,120]
[340867938,1729963840220,-449.21317703,0.00035183,120]
[340867939,1729963840230,-1018.73337936,0.00035183,20]
[340867940,1729963840241,-164.0,0.00035183,2]
[340867941,1729963840251,-150.0,0.00035183,14]
[340867942,1729963840261,-150.0,0.00035183,14]
[340867943,1729963840271,-2849.51364669,0.00035183,10]
[340867944,1729963840280,-200.0,0.00035183,14]
[340867945,1729963840289,-15282.41495556,0.00035183,10]
[340867946,1729963840298,-221.50908686,0.00035183,2]
[340867947,1729963840308,-2752.04765153,0.00035183,4]
[340867948,1729963840318,-13570.47099455,0.00035183,5]
[340867949,1729963840327,-12036.86351352,0.00035183,2]
[340867950,1729963840337,-3032.8823268,0.00035183,2]
[340867951,1729963840346,-232.38467053,0.00035183,2]
[340867952,1729963840356,-57758.44859822,0.00035183,2]
[340867953,1729963840368,-1801.32620228,0.00035183,2]
[340867954,1729963840671,-537.67898736,0.00035183,2]
[340867955,1729963840684,-578.0,0.00035183,2]
[340867956,1729963840698,-28894.73981153,0.00035183,2]
[340867957,1729963840708,-2000.0,0.00035183,2]
[340867958,1729963840718,-300.0,0.00035183,2]
[340867959,1729963840728,-795.97259877,0.00035183,2]
[340867960,1729963840740,-6469.15134534,0.00035183,2]
[340867961,1729963840751,-515.79270682,0.00035183,2]
[340867962,1729963840761,-291.90129872,0.00035183,2]
[340867963,1729963840772,-4163.86522279,0.00035183,2]
[340867964,1729963840782,-321.44718907,0.00035183,2]
[340867965,1729963840791,-1189.12567016,0.00035183,2]
[340867966,1729963840803,-286.81616499,0.00035183,2]
[340867967,1729963840813,-50836.18072555,0.00035183,2]
[340867968,1729963840824,-4134.23560422,0.00035183,2]
[340867969,1729963840834,-10126.56736587,0.00035183,2]
[340867970,1729963840844,-9859.18804146,0.00035183,2]
[340867971,1729963840855,-1183.84262207,0.00035183,2]
[340867972,1729963840866,-154.79492394,0.00035183,2]
[340867973,1729963840879,-517.01902814,0.00035183,2]
[340867974,1729963840888,-1521.84164767,0.00035183,2]
[340867975,1729963840898,-15867.83355768,0.00035183,2]
[340867976,1729963840908,-14569.58416078,0.00035183,2]
[340867977,1729963840920,-438.50596313,0.00035183,2]
[340867978,1729963840930,-223.98932492,0.00035183,2]
[340867979,1729963840939,-13637.18708379,0.00035183,2]
[340867980,1729963840950,-1021.70489721,0.00035183,2]
[340867981,1729963840960,-154246.14501895,0.00035183,2]
[340867982,1729963840970,-18152.53988977,0.00035183,2]
[340867983,1729963840979,-62456.03746908,0.00035183,2]
[340868048,1729963846177,-619.72788326,0.00035183,2]
[340868050,1729963846190,-36817.16957107,0.00035183,2]
[340868053,1729963846200,-5297.5457213,0.00035183,2]
[340868055,1729963846210,-907.71661569,0.00035183,2]
[340868057,1729963846220,-460.012036,0.00035183,2]
[340868059,1729963846231,-176.01344609,0.00035183,2]
[340868061,1729963846241,-833.27223104,0.00035183,2]
[340868063,1729963846250,-223.39804314,0.00035183,2]
[340868065,1729963846260,-886.319,0.00035183,2]
[340868067,1729963846271,-1885.13504576,0.00035183,2]
[340868069,1729963846281,-4400.36861111,0.00035183,2]
[340868071,1729963846290,-200.0,0.00035183,2]
[340868073,1729963846300,-258.09485575,0.00035183,2]
[340868075,1729963846310,-3064.19344053,0.00035183,2]
[340868077,1729963846320,-51900.27042229,0.00035183,10]
[340868079,1729963846330,-400.0,0.00035183,2]
[340868081,1729963846340,-400.0,0.00035183,2]
[340868083,1729963846350,-442.0,0.00035183,2]
[340868086,1729963846360,-200.0,0.00035183,2]
[340868088,1729963846370,-151.0,0.00035183,14]
[340868090,1729963846380,-151.0,0.00035183,14]
[340868092,1729963846390,-151.0,0.00035183,14]
[340868094,1729963846401,-160.999844,0.00035183,14]
[340868096,1729963846412,-151.0,0.00035183,14]
[340868098,1729963846421,-151.0,0.00035183,14]
[340868100,1729963846431,-161.926636,0.00035183,14]
[340868102,1729963846442,-151.0,0.00035183,14]
[340868104,1729963846452,-151.0,0.00035183,14]
[340868106,1729963846462,-151.0,0.00035183,14]
[340868108,1729963846472,-151.0,0.00035183,14]
[340868111,1729963846482,-151.0,0.00035183,14]
[340868113,1729963846492,-151.0,0.00035183,14]
[340868115,1729963846502,-151.0,0.00035183,14]
[340868117,1729963846513,-151.0,0.00035183,14]
[340868119,1729963846523,-151.0,0.00035183,14]
[340868121,1729963846533,-151.0,0.00035183,14]
[340868123,1729963846543,-151.0,0.00035183,14]
[340868125,1729963846554,-151.0,0.00035183,14]
[340868127,1729963846566,-151.0,0.00035183,14]
[340868129,1729963846577,-151.0,0.00035183,14]
[340868132,1729963846592,-153.502598,0.00035183,14]
[340868134,1729963846604,-198.524386,0.00035183,14]
[340868136,1729963846615,-150.112233,0.000352,5]
[340868139,1729963846626,-150.112233,0.000352,5]
[340868141,1729963846636,-150.112233,0.000352,8]
[340868143,1729963846647,-501.72393714,0.00035233,5]
[340868145,1729963846657,-150.112233,0.000353,6]
[340868147,1729963846667,-500.3159791,0.00035325,5]
[340868149,1729963846677,-251.48219743,0.00035333,5]
[340868151,1729963846688,-500.0,0.00035333,5]
[340868153,1729963846700,-150.112233,0.000354,9]
[340868156,1729963846711,-500.0,0.00035416,2]
[340868158,1729963846723,-151.0,0.00035425,120]
[340868160,1729963846734,-500.0,0.00035433,5]
[340868162,1729963846745,-151.0,0.00035479,120]
[340868164,1729963846755,-150.112233,0.000355,7]
[340868166,1729963846766,-500.0,0.00035523,5]
[340868168,1729963846777,-167.94795725,0.00035523,5]
[340868171,1729963846787,-161.91806435,0.00035589,5]
[340868173,1729963846800,-500.0,0.00035589,5]
[340868175,1729963846810,-500.0,0.00035589,5]
[340868177,1729963846820,-500.0,0.00035589,2]
[340868179,1729963846830,-500.0,0.00035589,5]
[340868181,1729963846842,-150.112233,0.000356,9]
[340868183,1729963846852,-150.112233,0.000356,7]
[340868186,1729963846862,-500.0,0.00035616,60]
[340868188,1729963846876,-150.112233,0.000357,5]
[340868190,1729963846886,-21085.6678025,0.00035782,5]
[340868192,1729963846897,-21085.6678025,0.00035792,5]
[340868194,1729963846908,-151.0,0.00035792,14]
[340868196,1729963846919,-42155.04155546,0.00035802,2]
[340868198,1729963846930,-290.404447,0.00035948,14]
[340868200,1729963846941,-1776.94,0.00035948,120]
[340868203,1729963846953,-21085.6678025,0.00035978,5]
[340868205,1729963846963,-16091.6144785,0.00035988,2]
[340868207,1729963846974,-151.0,0.00035988,14]
[340868209,1729963846984,-1333.73345337,0.00035994,7]
[340868211,1729963846993,-500.0,0.00036,120]
[340868213,1729963847004,-1000.0,0.00036,120]
[340868215,1729963847016,-260.1251,0.000361,120]
[340868217,1729963847026,-500.0,0.00036164,60]
[340868219,1729963847036,-199.0,0.00036183,2]
[340868221,1729963847046,-1011.377825,0.00036228,2]
[340868223,1729963847056,-259.86149901,0.0003624,2]
[340868226,1729963847067,-151.0,0.00036329,120]
[340868228,1729963847078,-5306.1610421,0.00036383,2]
[340868229,1729963847088,-343.29,0.000364,30]
[340868231,1729963847098,-664.11,0.000364,30]
[340868233,1729963847108,-500.0,0.00036454,120]
[340868235,1729963847119,-151.0,0.00036454,120]
[340868236,1729963847131,-1000.0,0.00036542,5]
[340868237,1729963847141,-1070.0406604,0.00036703,5]
[340868238,1729963847151,-500.0,0.00036712,60]
[340868239,1729963847162,-42171.335605,0.0003678,5]
[340868240,1729963847173,-808.27,0.000368,30]
[340868241,1729963847183,-1500.0,0.000368,2]
[340868242,1729963847198,-1500.0,0.000368,2]
[340868243,1729963847210,-1500.0,0.000368,2]
[340868244,1729963847221,-1500.0,0.000368,2]
[340868245,1729963847232,-1500.0,0.000368,2]
[340868246,1729963847243,-500.0,0.00036803,5]
[340868247,1729963847255,-151.0,0.00036849,120]
[340868248,1729963847265,-742.89,0.000369,30]
[340868249,1729963847275,-1776.94,0.00036907,120]
[340868250,1729963847285,-269.0,0.00036956,2]
[340868251,1729963847295,-162.7348034,0.00036959,5]
[340868252,1729963847306,-1000.0,0.00036959,5]
[340868253,1729963847316,-1000.0,0.00036959,2]
[340868254,1729963847327,-1000.0,0.00036959,5]
[340868255,1729963847338,-577.0,0.00037122,7]
[340868256,1729963847348,-151.0,0.00037233,120]
[340868257,1729963847358,-500.0,0.0003726,60]
[340868258,1729963847369,-390.5,0.000375,120]
[340868259,1729963847380,-1011.377825,0.00037504,2]
[340868260,1729963847389,-260.1251,0.000377,120]
[340868261,1729963847399,-500.0,0.00037824,120]
[340868262,1729963847410,-151.0,0.00037824,120]
[340868263,1729963847419,-1776.94,0.00037866,120]
[340868264,1729963847430,-5306.1610421,0.00037876,2]
[340868265,1729963847439,-517.0,0.00038,4]
[340868266,1729963847450,-667.3106867,0.00038,10]
[340868267,1729963847460,-3682.8755814,0.00038,20]
[340868268,1729963847470,-500.0,0.00038,120]
[340868269,1729963847480,-1000.0,0.00038,120]
[340868270,1729963847489,-664.11,0.00038,30]
[340868271,1729963847500,-343.29,0.00038,30]
[340868272,1729963847509,-1333.73345337,0.00038031,7]
[340868273,1729963847520,-151.0,0.00038137,120]
[340868274,1729963847530,-500.0,0.00038156,2]
[340868275,1729963847540,-159.104,0.0003817,120]
[340868276,1729963847550,-808.27,0.000382,30]
[340868277,1729963847561,-151.0,0.00038219,120]
[340868278,1729963847571,-150.0,0.000383,2]
[340868279,1729963847581,-500.0,0.00038356,60]
[340868280,1729963847591,-500.0,0.00038356,120]
[340868281,1729963847601,-622.24439819,0.00038356,120]
[340868282,1729963847611,-500.0,0.00038356,120]
[340868283,1729963847621,-500.0,0.00038356,120]
[340868284,1729963847631,-500.0,0.00038356,120]
[340868285,1729963847640,-500.0,0.00038356,120]
[340868286,1729963847650,-500.0,0.00038356,120]
[340868287,1729963847659,-519.20066485,0.00038356,120]
[340868288,1729963847669,-570.49231942,0.00038356,120]
[340868289,1729963847679,-500.0,0.00038356,120]
[340868290,1729963847689,-371.6199187,0.00038356,30]
[340868291,1729963847699,-500.0,0.00038356,120]
[340868292,1729963847708,-500.0,0.00038356,120]
[340868293,1729963847718,-500.0,0.00038356,120]
[340868294,1729963847729,-514.45014244,0.00038356,120]
[340868295,1729963847738,-500.0,0.00038356,120]
[340868296,1729963847748,-500.0,0.00038356,120]
[340868297,1729963847759,-690.88,0.00038356,120]
[340868298,1729963847769,-500.0,0.00038356,120]
[340868299,1729963847780,-500.0,0.00038356,120]
[340868300,1729963847792,-500.0,0.00038356,120]
[340868301,1729963847804,-500.0,0.00038356,120]
[340868302,1729963847814,-500.0,0.00038356,120]
[340868303,1729963847825,-500.0,0.00038356,120]
[340868304,1729963847837,-500.0,0.00038356,120]
[340868305,1729963847848,-777.91,0.00038356,120]
[340868306,1729963847859,-500.0,0.00038356,120]
[340868307,1729963847870,-500.0,0.00038356,120]
[340868308,1729963847882,-500.0,0.00038356,120]
[340868309,1729963847893,-500.0,0.00038356,120]
[340868310,1729963847905,-511.11643219,0.00038356,120]
[340868311,1729963847915,-500.0,0.00038356,120]
[340868312,1729963847924,-500.0,0.00038356,120]
[340868313,1729963847935,-1020.0,0.00038356,120]
[340868314,1729963847945,-500.0,0.00038356,120]
[340868315,1729963847955,-500.0,0.00038356,120]
[340868316,1729963847966,-500.0,0.00038356,120]
[340868317,1729963847976,-500.0,0.00038356,120]
[340868318,1729963847986,-500.0,0.00038356,120]
[340868319,1729963847996,-514.62,0.00038356,120]
[340868320,1729963848006,-500.0,0.00038356,120]
[340868321,1729963848015,-500.0,0.00038356,120]
[340868322,1729963848025,-507.48103041,0.00038356,120]
[340868323,1729963848036,-500.0,0.00038356,120]
[340868324,1729963848047,-500.0,0.00038356,120]
[340868325,1729963848056,-500.0,0.00038356,120]
[340868326,1729963848066,-501.19464796,0.00038356,120]
[340868327,1729963848076,-562.35444766,0.00038356,120]
[340868328,1729963848086,-500.0,0.00038356,120]
[340868329,1729963848097,-500.0,0.00038356,120]
[340868330,1729963848106,-500.0,0.00038356,120]
[340868331,1729963848116,-500.0,0.00038356,120]
[340868332,1729963848126,-316.0198132,0.00038356,120]
[340868333,1729963848136,-500.0,0.00038356,120]
[340868334,1729963848145,-500.0,0.00038356,120]
[340868335,1729963848155,-634.21,0.00038356,120]
[340868336,1729963848165,-500.0,0.00038356,120]
[340868337,1729963848273,-515.56,0.00038356,120]